{"text_format":"3","workbook":"xlsx","n_sheets":3,"sheets":["Списък учащи","Списък на класа","Данни за учащите"],"not_rendered":{"images":2,"defined_names":8},"read":"whole","date_system":"1900"}

{"sheet":"Списък учащи","index":0,"n_rows":8,"n_cols":13,"rows_kept":8,"merged":[[1,2,2,3],[1,4,1,11],[2,4,2,11],[6,12,8,16]]}
[]
[null,null,"Списък на учениците",null,"КЪМ СПИСЪКА НА КЛАСА"]
[{"$nulls":4},"КЪМ ПОДРОБНОСТИ ЗА УЧЕНИЦИТЕ"]
[null,null,"ИМЕ НА УЧЕНИК","ИМЕЙЛ","ДОМАШЕН ТЕЛЕФОН","МОБИЛЕН ТЕЛЕФОН","ДАТА НА РАЖДАНЕ","КОНТАКТ ПРИ СПЕШНИ СЛУЧАИ","ТЕЛЕФОН ПРИ СПЕШНИ СЛУЧАИ","ЛЕКАР","ТЕЛЕФОН НА ЛЕКАРЯ","  "]
[null,null,"Име 1","Имейл адрес","Домашен телефон","Мобилен телефон","Дата","Контакт 1","Телефон при спешни случаи","Лекар 1","Телефон на лекаря"]
[null,null,"Име 2","Имейл адрес","Домашен телефон","Мобилен телефон","Дата","Контакт 2","Телефон при спешни случаи","Лекар 2","Телефон на лекаря"]
[null,null,"Име 3","Имейл адрес","Домашен телефон","Мобилен телефон","Дата","Контакт 3","Телефон при спешни случаи","Лекар 3","Телефон на лекаря",null,"Съвет: за да добавите още ученици, в последната клетка на таблицата, натиснете клавиша Tab."]
[null,null,"Име 4","Имейл адрес","Домашен телефон","Мобилен телефон","Дата","Контакт 4","Телефон при спешни случаи","Лекар 4","Телефон на лекаря"]

{"sheet":"Списък на класа","index":1,"n_rows":12,"n_cols":7,"rows_kept":12,"merged":[[1,2,2,2],[1,3,2,3],[1,4,1,6],[2,4,2,6]]}
[]
[null,null,"Списък на класа","Graphic Design Institute","КЪМ СПИСЪКА НА УЧЕНИЦИТЕ"]
[{"$nulls":4},"КЪМ ПОДРОБНОСТИ ЗА УЧЕНИЦИТЕ"]
[null,null,"КУРС","Име на курса","НАЧАЛНА ДАТА","Дата"]
[null,null,"ПРЕПОДАВАТЕЛ","Преподавател 1","КРАЙНА ДАТА","Дата"]
[null,null,"ЗАПИСАНИ УЧЕНИЦИ",{"$f":"COUNTA(Списък_Учащи[ИМЕ НА УЧЕНИК])","v":4}]
[]
[null,null,"ИМЕ НА УЧЕНИК","ИМЕЙЛ","ДОМАШЕН ТЕЛЕФОН","МОБИЛЕН ТЕЛЕФОН","  "]
[null,null,"Име 1",{"$f":"IFERROR(VLOOKUP(Списък_Учащи[[#This Row],[ИМЕ НА УЧЕНИК]],Учащи[],2),\"\")","v":"Имейл адрес"},{"$f":"IFERROR(VLOOKUP(Списък_Учащи[[#This Row],[ИМЕ НА УЧЕНИК]],Учащи[],3),\"\")","v":"Домашен телефон"},{"$f":"IFERROR(VLOOKUP(Списък_Учащи[[#This Row],[ИМЕ НА УЧЕНИК]],Учащи[],4),\"\")","v":"Мобилен телефон"}]
[null,null,"Име 2",{"$f":"IFERROR(VLOOKUP(Списък_Учащи[[#This Row],[ИМЕ НА УЧЕНИК]],Учащи[],2),\"\")","v":"Имейл адрес"},{"$f":"IFERROR(VLOOKUP(Списък_Учащи[[#This Row],[ИМЕ НА УЧЕНИК]],Учащи[],3),\"\")","v":"Домашен телефон"},{"$f":"IFERROR(VLOOKUP(Списък_Учащи[[#This Row],[ИМЕ НА УЧЕНИК]],Учащи[],4),\"\")","v":"Мобилен телефон"}]
[null,null,"Име 3",{"$f":"IFERROR(VLOOKUP(Списък_Учащи[[#This Row],[ИМЕ НА УЧЕНИК]],Учащи[],2),\"\")","v":"Имейл адрес"},{"$f":"IFERROR(VLOOKUP(Списък_Учащи[[#This Row],[ИМЕ НА УЧЕНИК]],Учащи[],3),\"\")","v":"Домашен телефон"},{"$f":"IFERROR(VLOOKUP(Списък_Учащи[[#This Row],[ИМЕ НА УЧЕНИК]],Учащи[],4),\"\")","v":"Мобилен телефон"}]
[null,null,"Име 4",{"$f":"IFERROR(VLOOKUP(Списък_Учащи[[#This Row],[ИМЕ НА УЧЕНИК]],Учащи[],2),\"\")","v":"Имейл адрес"},{"$f":"IFERROR(VLOOKUP(Списък_Учащи[[#This Row],[ИМЕ НА УЧЕНИК]],Учащи[],3),\"\")","v":"Домашен телефон"},{"$f":"IFERROR(VLOOKUP(Списък_Учащи[[#This Row],[ИМЕ НА УЧЕНИК]],Учащи[],4),\"\")","v":"Мобилен телефон"}]

{"sheet":"Данни за учащите","index":2,"n_rows":13,"n_cols":4,"rows_kept":13,"merged":[[1,2,2,2],[1,3,1,4],[2,3,2,4],[3,2,3,3]]}
[]
[null,null,"Подробности за учениците","КЪМ СПИСЪКА НА УЧЕНИЦИТЕ"]
[{"$nulls":3},"КЪМ СПИСЪКА НА КЛАСА"]
[null,null,"ПОЯСНЕНИЕ: ИЗБЕРЕТЕ УЧЕНИК ОТ ПАДАЩИЯ СПИСЪК В КЛЕТКА D5, ЗА ДА АКТУАЛИЗИРАТЕ ПОДРОБНИТЕ ДАННИ ЗА УЧЕНИКА"]
[null,null,"ИМЕ НА УЧЕНИК","Име 1"]
[null,null,"ИМЕЙЛ",{"$f":"IFERROR(VLOOKUP(ИмеУчащ,Учащи[],2,FALSE),\"\")","v":"Имейл адрес"}]
[null,null,"ДОМАШЕН ТЕЛЕФОН",{"$f":"IFERROR(VLOOKUP(ИмеУчащ,Учащи[],3,FALSE),\"\")","v":"Домашен телефон"}]
[null,null,"МОБИЛЕН ТЕЛЕФОН",{"$f":"IFERROR(VLOOKUP(ИмеУчащ,Учащи[],4,FALSE),\"\")","v":"Мобилен телефон"}]
[null,null,"ДАТА НА РАЖДАНЕ",{"$f":"IFERROR(VLOOKUP(ИмеУчащ,Учащи[],5,FALSE),\"\")","v":"Дата"}]
[null,null,"КОНТАКТ ПРИ СПЕШНИ СЛУЧАИ",{"$f":"IFERROR(VLOOKUP(ИмеУчащ,Учащи[],6,FALSE),\"\")","v":"Контакт 1"}]
[null,null,"ТЕЛЕФОН ПРИ СПЕШНИ СЛУЧАИ",{"$f":"IFERROR(VLOOKUP(ИмеУчащ,Учащи[],7,FALSE),\"\")","v":"Телефон при спешни случаи"}]
[null,null,"ЛЕКАР",{"$f":"IFERROR(VLOOKUP(ИмеУчащ,Учащи[],8,FALSE),\"\")","v":"Лекар 1"}]
[null,null,"ТЕЛЕФОН НА ЛЕКАРЯ",{"$f":"IFERROR(VLOOKUP(ИмеУчащ,Учащи[],9,FALSE),\"\")","v":"Телефон на лекаря"}]